bitfinex/quotes_ETHUSD_20260227
["timestamp","ask_amount","ask_price","bid_price","bid_amount"]
[1772157395551,0.55972907,2018.8,2018.0,1.97563086]
[1772157395852,0.55972907,2018.8,2018.0,0.0011]
[1772157395853,0.55972907,2018.6,2018.0,0.0011]
[1772157396022,0.55972907,2018.6,2018.0,0.51623551]
[1772157397847,0.55972907,2018.4,2018.0,0.51623551]
[1772157399121,0.51749664,2019.2,2018.3,0.54976353]
[1772157399333,0.51749664,2019.1,2018.5,0.54976353]
[1772157399531,1.75604011,2019.1,2018.5,0.54976353]
[1772157400032,1.23823675,2019.0,2018.5,1.78829539]
[1772157401536,3.01923675,2019.0,2018.5,1.78829539]
[1772157402349,0.55536331,2019.5,2018.8,0.53623949]
[1772157402656,1.781,2019.4,2018.8,0.53623949]
[1772157402825,0.001,2019.0,2018.8,0.53623949]
[1772157404157,0.001,2019.0,2018.8,1.77455886]
[1772157404647,0.001,2019.0,2018.8,0.53623949]
[1772157406271,0.001,2019.0,2018.8,1.77459601]
[1772157409445,1.23854347,2018.9,2018.6,0.53623949]
[1772157411768,1.23854347,2018.9,2018.7,1.77466025]
[1772157412130,0.001,2019.0,2018.7,1.77466025]
[1772157413456,0.001,2019.0,2018.8,0.53623949]
[1772157414238,0.001,2019.0,2018.8,1.77459452]
[1772157414436,0.001,2019.0,2018.8,0.53623949]
[1772157414638,0.001,2019.0,2018.8,1.77458975]
[1772157417161,0.001,2019.0,2018.8,1.77459848]
[1772157418777,0.001,2019.0,2018.7,5.49101934]
[1772157418963,0.001,2019.0,2018.8,0.53623949]
[1772157420348,0.55536331,2019.3,2018.9,0.53623949]
[1772157420551,0.55536331,2019.5,2018.9,0.53623949]
[1772157420756,0.55536331,2019.5,2019.0,1.77447624]
[1772157420958,0.55536331,2019.4,2019.0,1.77447624]
[1772157422668,0.55536331,2019.8,2019.3,0.53623949]
[1772157422854,0.002,2019.9,2019.5,0.53623949]
[1772157423048,0.55736331,2019.9,2019.5,0.53623949]
[1772157423768,0.002,2019.9,2019.7,0.53623949]
[1772157424338,0.002,2020.1,2019.7,0.53623949]
[1772157424547,0.002,2020.1,2019.9,0.53623949]
[1772157424746,0.55736331,2020.3,2019.9,0.53623949]
[1772157424946,0.55736331,2020.3,2020.0,1.23762376]
[1772157425649,0.55736331,2020.3,2020.0,1.77386325]
[1772157425650,0.002,2020.3,2020.0,1.77386325]
[1772157425848,0.002,2020.3,2020.1,0.53623949]
[1772157428146,0.002,2020.3,2020.0,1.23862376]
[1772157428345,0.002,2020.3,2020.0,1.77486325]
[1772157428742,0.55736331,2020.3,2020.0,1.23862376]
[1772157429477,0.55736331,2020.3,2020.0,0.001]
[1772157429978,0.002,2020.3,2020.0,0.54775906]
[1772157430160,0.002,2020.4,2020.1,0.54675906]
[1772157430358,0.002,2020.6,2020.1,0.54675906]
[1772157430567,0.002,2020.6,2020.3,0.54675906]
[1772157431051,0.44631707,2020.9,2020.3,0.54675906]
[1772157431450,0.44631707,2020.9,2020.5,0.54675906]
[1772157432361,0.002,2021.0,2020.5,0.54675906]
[1772157432755,0.44635609,2021.1,2020.5,0.54675906]
[1772157432756,0.002,2021.3,2020.9,0.54675906]
[1772157433261,0.44839257,2021.3,2020.9,0.54675906]
[1772157433455,0.44839257,2021.3,2021.0,1.23701138]
[1772157434352,0.002,2021.3,2021.0,1.23701138]
[1772157434747,0.44842993,2021.3,2020.9,1.78380935]
[1772157436182,0.44842993,2021.3,2021.0,0.54675906]
[1772157436901,0.002,2021.3,2021.0,0.54675906]
[1772157437681,0.002,2021.3,2021.1,1.78370923]
[1772157438174,0.002,2021.3,2021.2,0.54675906]
[1772157438546,0.44654558,2021.6,2021.2,0.54675906]
[1772157439250,0.4466173,2021.8,2021.2,0.54675906]
[1772157439848,0.4466173,2021.8,2021.3,1.23682778]
[1772157440052,0.4466173,2021.8,2021.4,0.54675906]
[1772157440252,4.17921759,2022.0,2021.4,0.54675906]
[1772157440481,1.68309326,2022.0,2021.4,0.54675906]
[1772157440772,0.002,2021.6,2021.4,0.54675906]
[1772157441679,1.23644148,2022.0,2021.5,0.54675906]
[1772157441680,0.44867676,2022.0,2021.5,0.54675906]
[1772157442375,2.99538065,2022.1,2021.6,0.54675906]
[1772157444684,3.4441564,2022.1,2021.6,0.54675906]
[1772157446880,2.99538065,2022.1,2021.6,0.54675906]
[1772157447094,2.99538065,2022.1,2021.4,4.94697776]
[1772157447095,0.44887403,2022.0,2021.4,0.54675906]
[1772157447394,0.44887403,2022.0,2021.0,0.54675906]
[1772157449176,1.23646075,2021.9,2021.2,0.54675906]
[1772157450089,1.68542579,2021.9,2021.2,0.54675906]
[1772157450266,0.44896504,2021.8,2021.2,0.54675906]
[1772157451887,1.68527677,2021.7,2021.2,1.78361014]
[1772157452066,0.4486937,2021.6,2021.2,1.78361014]
[1772157452267,0.4486937,2021.6,2021.4,0.001]
[1772157452467,0.4506937,2021.6,2021.4,0.001]
[1772157452986,0.4506937,2021.6,2021.2,0.001]
[1772157454288,0.4469003,2021.4,2021.2,0.001]
[1772157454509,0.4469003,2021.4,2020.9,0.001]
[1772157455095,0.4469003,2021.4,2020.5,0.54675906]
[1772157456591,0.44639015,2021.2,2020.5,0.54675906]
[1772157458484,0.4456402,2021.0,2020.2,4.24295303]
[1772157459201,0.4456402,2021.0,2020.2,0.55293121]
[1772157459411,0.4456402,2021.0,2020.1,2.73851163]
[1772157459575,0.4456402,2021.0,2020.1,3.29144284]
[1772157459776,0.4456402,2021.0,2020.1,2.05393121]
[1772157459977,0.4456402,2021.0,2020.2,0.5298284]
[1772157460676,0.4449322,2020.8,2020.2,0.5298284]
[1772157462202,1.68153514,2020.9,2020.1,0.5298284]
[1772157462400,0.44446255,2020.8,2020.1,0.5298284]
[1772157462614,0.44446255,2020.8,2020.0,0.001]
[1772157462920,0.44446255,2020.6,2020.0,0.001]
[1772157463101,0.44446255,2020.4,2019.8,0.001]
[1772157465381,0.44446255,2020.4,2019.9,0.5298284]
[1772157465382,1.23743998,2020.3,2019.9,0.5298284]
[1772157465739,3.43510871,2020.5,2020.4,0.001]
[1772157469724,2.19779122,2020.5,2020.4,0.001]
[1772157469932,1.23726457,2020.6,2020.4,0.001]
[1772157470341,1.67998442,2020.6,2020.4,0.001]
[1772157471651,5.3913133,2020.7,2020.4,0.001]
[1772157472024,1.67971413,2020.7,2020.4,0.001]
[1772157474059,0.44211301,2020.6,2020.4,0.001]
[1772157474249,0.44211301,2020.6,2020.2,0.5308284]
[1772157474452,1.23719503,2020.7,2020.2,0.5308284]
[1772157476260,1.23719503,2020.7,2020.3,0.5298284]
[1772157477263,2.99318317,2020.8,2020.3,0.5298284]
[1772157479572,0.002,2020.5,2020.3,0.5298284]
[1772157480344,0.002,2020.5,2020.4,0.5298284]
[1772157480543,0.002,2020.5,2020.2,0.5308284]
[1772157480858,0.002,2020.7,2020.0,0.001]
[1772157480859,0.39274446,2020.3,2020.0,0.001]
[1772157481238,0.39274446,2020.3,2019.8,0.001]
[1772157482269,0.39274446,2020.3,2019.5,0.001]
[1772157482666,1.23743998,2020.3,2019.7,0.5308284]
[1772157482974,1.62888851,2020.3,2019.7,0.5308284]
[1772157483468,1.761,2020.4,2019.9,0.5298284]
[1772157484661,0.002,2020.7,2020.1,0.5298284]
[1772157487081,0.002,2020.7,2020.3,0.5298284]
[1772157490287,0.002,2020.7,2020.5,0.52839443]
[1772157492705,0.002,2020.7,2020.5,1.76565747]
[1772157492878,0.002,2020.7,2020.6,0.52839443]
[1772157495907,0.002,2021.0,2020.6,0.52839443]
[1772157496676,4.94737857,2021.3,2020.9,0.52839443]
[1772157496677,0.002,2021.3,2020.9,0.52839443]
[1772157497679,0.002,2021.3,2021.1,0.52839443]
[1772157499504,0.002,2021.6,2021.1,0.52839443]
[1772157499720,0.38910036,2022.1,2020.9,4.94804552]
[1772157499721,1.90710036,2022.5,2021.6,0.52839443]
[1772157499928,1.23619723,2022.4,2021.6,0.52839443]
[1772157500230,0.1616652,2023.0,2022.1,0.52839443]
[1772157500531,8.73536762,2024.4,2022.1,0.52839443]
[1772157500532,0.38899265,2024.9,2023.2,0.52839443]
[1772157500716,4.93830752,2025.0,2022.9,10.29661581]
[1772157500717,1.23567496,2024.8,2023.4,1.78708424]
[1772157500919,8.64720527,2024.4,2023.2,1.78708424]
[1772157501119,0.20760645,2023.9,2022.6,1.493]
[1772157501330,0.53715536,2023.7,2022.6,1.493]
[1772157501796,0.53715536,2023.5,2022.5,0.52839443]
[1772157502541,0.69882056,2023.4,2022.5,0.52839443]
[1772157502821,0.53715536,2023.2,2022.3,0.52839443]
[1772157503228,0.69882056,2023.1,2022.3,0.52839443]
[1772157503447,0.53715536,2023.1,2022.1,1.76473108]
[1772157503747,0.53715536,2022.9,2022.1,1.76472943]
[1772157503943,1.23591061,2022.8,2022.1,1.76472943]
[1772157504149,0.1616652,2022.8,2022.2,0.52839443]
[1772157505050,1.23575787,2023.1,2022.2,0.52839443]
[1772157505246,1.39742307,2023.1,2022.2,0.52839443]
[1772157505551,1.23564888,2023.3,2022.2,0.52839443]
[1772157505728,1.93446944,2023.3,2022.2,0.52839443]
[1772157506055,0.002,2022.9,2022.4,0.52839443]
[1772157506250,0.002,2022.9,2022.4,1.82839443]
[1772157506561,0.002,2022.9,2022.5,0.52839443]
[1772157506846,0.002,2023.1,2022.6,0.52839443]
[1772157507037,0.1636652,2023.1,2022.6,0.52839443]
[1772157507238,0.1616652,2023.0,2022.6,0.52839443]
[1772157507445,0.1616652,2023.0,2022.4,0.52839443]
[1772157508554,1.39749287,2023.0,2022.4,1.2361523]
[1772157508850,0.1616652,2023.0,2022.5,0.52839443]
[1772157509057,1.23775432,2023.1,2022.5,0.52839443]
[1772157509249,0.1616652,2023.0,2022.3,1.76457272]
[1772157509444,0.1616652,2023.0,2022.4,0.52839443]
[1772157510026,1.23775432,2023.1,2022.4,0.52839443]
[1772157510257,0.1616652,2023.0,2022.4,0.52839443]
[1772157510560,0.23961774,2023.0,2022.2,0.52839443]
[1772157510732,5.18301583,2023.0,2022.2,0.52839443]
[1772157510930,0.23961774,2022.9,2022.2,0.52839443]
[1772157512235,4.94339809,2023.0,2022.2,0.52839443]
[1772157512556,0.002,2023.1,2022.7,0.52839443]
[1772157512927,1.23754413,2023.4,2023.0,0.52839443]
[1772157512928,0.002,2023.4,2023.0,0.52839443]
[1772157513554,0.002,2023.4,2022.8,0.52839443]
[1772157513945,0.53915536,2023.4,2022.6,0.52839443]
[1772157514656,1.23560519,2023.3,2022.6,1.76439973]
[1772157514956,1.23560519,2023.3,2022.7,0.52839443]
[1772157515159,0.53715536,2023.2,2022.5,1.76444093]
[1772157515336,0.53715536,2023.2,2022.4,9.86373538]
[1772157515337,0.53715536,2023.2,2022.4,6.15532209]
[1772157515537,0.53715536,2023.2,2022.4,2.72311682]
[1772157516154,0.53715536,2023.2,2022.5,0.52839443]
[1772157516659,4.94442079,2023.4,2022.7,0.52839443]
[1772157516660,1.77474483,2023.4,2022.7,0.52839443]
[1772157517054,0.002,2023.4,2022.7,0.52839443]
[1772157517843,0.002,2023.4,2022.9,0.52839443]
[1772157518063,0.002,2023.1,2022.9,1.486]
[1772157518248,0.002,2023.4,2023.0,0.52839443]
[1772157518657,0.002,2023.3,2023.0,0.52839443]
[1772157518844,0.002,2023.3,2022.9,1.486]
[1772157520751,0.002,2023.3,2022.9,2.72184515]
[1772157521151,0.002,2023.3,2023.0,0.58171894]
[1772157521669,0.002,2023.4,2023.0,0.58171894]
[1772157521867,0.002,2023.6,2023.0,0.58171894]
[1772157522255,1.23744706,2023.6,2023.0,0.58171894]
[1772157522854,0.002,2023.6,2023.0,0.58171894]
[1772157523361,0.002,2023.6,2023.2,0.58171894]
[1772157523762,0.002,2023.6,2023.1,1.23572734]
[1772157524268,0.002,2023.6,2023.1,1.81744628]
[1772157524475,0.002,2023.6,2023.2,0.58171894]
[1772157525169,1.741,2024.0,2023.3,0.58171894]
[1772157525374,4.93994034,2024.4,2023.5,0.58171894]
[1772157525375,1.2349338,2024.4,2023.5,0.58171894]
[1772157525946,6.67104552,2025.1,2023.5,0.58171894]
[1772157526151,0.58470899,2024.6,2023.8,0.58171894]
[1772157526347,0.58470899,2024.6,2023.8,1.38271894]
[1772157526561,0.58470899,2024.6,2023.9,0.58171894]
[1772157527074,1.2345679,2025.0,2023.9,0.58171894]
[1772157527273,6.67104552,2025.1,2024.3,0.58171894]
[1772157527274,2.31770899,2025.1,2024.3,0.58171894]
[1772157527566,3.55222688,2025.1,2024.3,0.58171894]
[1772157527767,3.55222688,2025.1,2024.2,1.23505582]
[1772157527768,0.58470899,2025.0,2024.0,1.23513399]
[1772157528153,0.58470899,2025.0,2024.1,0.58171894]
[1772157528680,0.58470899,2025.0,2023.9,1.23518989]
[1772157529477,0.58470899,2024.8,2023.9,1.81690883]
[1772157529878,0.58470899,2024.8,2023.9,0.58171894]
[1772157530809,0.58670899,2024.6,2023.7,0.58171894]
[1772157531459,1.2348728,2024.5,2023.7,1.8170738]
[1772157531768,1.2348728,2024.5,2023.8,0.58171894]
[1772157532270,1.81958179,2024.5,2023.8,0.58171894]
[1772157534587,1.2348728,2024.5,2023.9,0.58171894]
[1772157536179,0.58670899,2024.6,2023.9,0.58171894]
[1772157536574,0.58670899,2024.6,2023.8,1.23529144]
[1772157536776,0.58670899,2024.6,2023.7,0.58171894]
[1772157537282,0.58670899,2024.6,2023.8,0.58171894]
[1772157538262,1.2348728,2024.5,2023.8,0.58171894]
[1772157538465,0.58470899,2024.4,2023.8,0.58171894]
[1772157539786,0.58470899,2024.4,2023.6,0.58171894]
[1772157540290,1.23499481,2024.3,2023.6,0.58171894]
[1772157540581,1.8197038,2024.3,2023.6,0.58171894]
[1772157540875,1.8197038,2024.3,2023.6,1.81713806]
[1772157541376,1.8197038,2024.3,2023.7,0.58171894]
[1772157541756,1.8197038,2024.3,2023.4,1.8172304]
[1772157541757,0.58470899,2024.2,2023.4,1.8172304]
[1772157541960,0.58470899,2024.2,2023.5,0.58171894]
[1772157542462,1.81982583,2024.1,2023.5,0.58171894]
[1772157542858,1.81982583,2024.1,2023.8,0.001]
[1772157543165,0.58470899,2024.3,2023.8,0.001]
[1772157543374,2.9609338,2024.5,2023.8,0.58271894]
[1772157543375,0.58470899,2024.5,2023.8,0.58271894]
[1772157543574,6.66452771,2024.9,2023.8,0.58271894]
[1772157543575,1.726,2024.9,2024.1,0.58171894]
[1772157543768,1.2367016,2024.8,2024.1,0.58171894]
[1772157543967,0.002,2024.8,2024.1,0.58171894]
[1772157544289,1.82140383,2024.8,2024.1,0.58171894]
[1772157544784,0.58670899,2024.8,2024.2,0.58171894]
[1772157544962,0.58670899,2024.8,2024.0,1.81685339]
[1772157545165,0.58670899,2024.8,2023.8,0.58271894]
[1772157546779,0.58470899,2024.6,2023.8,0.001]
[1772157547894,0.58470899,2024.6,2023.8,0.58271894]
[1772157548976,0.58470899,2024.4,2023.8,0.58271894]
[1772157549164,0.58470899,2024.4,2023.8,0.001]
[1772157549889,0.58470899,2024.4,2023.8,0.64231688]
[1772157550268,0.58470899,2024.4,2023.8,1.87761254]
[1772157550781,0.58470899,2024.4,2023.8,0.001]
[1772157550986,1.23499481,2024.3,2023.8,0.001]
[1772157551373,1.81968402,2024.4,2023.8,0.001]
[1772157552278,0.64514492,2024.3,2023.8,0.001]
[1772157553069,1.23505582,2024.2,2023.8,0.001]
[1772157553592,0.64514492,2024.3,2023.8,0.001]
[1772157553794,1.88014089,2024.3,2023.8,0.001]
[1772157554094,1.88005619,2024.5,2023.8,0.64231688]
[1772157555002,0.64514492,2024.5,2024.0,0.001]
[1772157555698,0.002,2024.6,2024.0,0.64231688]
[1772157556301,1.23682033,2024.6,2024.0,0.64231688]
[1772157556510,0.64514492,2024.5,2024.0,0.001]
[1772157556993,1.2349338,2024.4,2024.0,0.001]
[1772157557194,1.88007872,2024.4,2024.0,0.001]
[1772157557806,0.64514492,2024.3,2024.0,0.001]
[1772157559204,1.88020074,2024.2,2024.0,0.001]
[1772157560093,0.64514492,2024.1,2024.0,0.001]
[1772157561189,1.88026176,2024.1,2023.8,0.001]
[1772157561682,0.64514492,2024.0,2023.5,0.001]
[1772157562291,1.23511684,2024.1,2023.6,0.64131688]
[1772157562492,3.60617985,2024.3,2023.6,0.64131688]
[1772157562699,1.23511684,2024.2,2023.6,0.64131688]
[1772157563107,1.726,2024.3,2023.7,1.23536097]
[1772157563314,2.96111684,2024.3,2023.8,0.64131688]
[1772157563511,4.19611733,2024.3,2023.8,0.64131688]
[1772157563712,1.23511684,2024.2,2023.6,0.64131688]
[1772157564301,1.23511684,2024.1,2023.6,0.64131688]
[1772157564515,4.19611733,2024.3,2023.6,0.64131688]
[1772157564711,1.23511684,2024.2,2023.6,0.64131688]
[1772157565289,1.23511684,2024.1,2023.7,0.64131688]
[1772157565910,1.23511684,2024.0,2023.5,1.8777731]
[1772157566522,1.23511684,2023.9,2023.5,0.64231688]
[1772157566710,1.88026176,2024.1,2023.5,0.64231688]
[1772157566711,1.23511684,2023.8,2023.5,0.64231688]
[1772157566893,1.23511684,2024.0,2023.5,0.64231688]
[1772157567092,1.88026176,2024.0,2023.5,0.64231688]
[1772157568115,1.23523889,2023.9,2023.5,0.64231688]
[1772157568614,2.37114492,2024.3,2023.8,0.001]
[1772157568809,4.94024681,2024.2,2023.8,0.001]
[1772157569520,4.94024681,2024.2,2023.9,0.64131688]
[1772157569692,0.56560425,2024.1,2023.9,0.64131688]
[1772157569896,0.56560425,2024.3,2024.0,1.23517786]
[1772157570091,0.002,2024.4,2024.0,1.23517786]
[1772157570316,0.56560425,2024.3,2024.0,1.23517786]
[1772157571025,0.56560425,2024.3,2024.0,1.18517786]
[1772157571724,0.002,2024.4,2024.0,1.18517786]
[1772157571927,0.56760425,2024.4,2024.0,1.18517786]
[1772157572812,0.56760425,2024.4,2024.0,1.82649474]
[1772157573013,0.002,2024.4,2024.0,1.82649474]
[1772157573199,0.002,2024.4,2024.1,0.64131688]
[1772157573400,0.002,2024.4,2024.2,0.64131688]
[1772157574215,0.002,2024.6,2024.2,0.64131688]
[1772157574416,0.002,2024.6,2024.4,0.64131688]
[1772157575917,0.002,2024.6,2024.3,1.23499481]
[1772157576226,0.56560425,2024.5,2024.1,1.472]
[1772157576619,1.80051686,2024.5,2024.1,1.472]
[1772157578403,1.80051686,2024.5,2024.0,1.87649319]
[1772157578404,1.80051686,2024.5,2024.0,0.64131688]
[1772157579230,2.47590971,2024.5,2023.8,0.64598379]
[1772157579530,0.67539285,2024.4,2023.8,0.64598379]
[1772157579913,0.56560425,2024.3,2023.8,0.64598379]
[1772157580113,0.67539285,2024.4,2023.8,0.64598379]
[1772157580718,1.23505582,2024.2,2023.8,0.64598379]
[1772157581410,0.56560425,2024.3,2023.8,0.64598379]
[1772157581632,0.56560425,2024.3,2023.8,0.001]
[1772157581633,1.22705524,2024.2,2023.8,0.001]
[1772157581822,0.66145099,2024.1,2023.5,0.63025125]
[1772157582024,0.66145099,2024.1,2023.7,0.001]
[1772157582208,0.66145099,2024.1,2023.5,0.001]
[1772157582736,1.23517786,2024.0,2023.5,0.001]
[1772157582941,1.89662885,2024.0,2023.5,0.001]
[1772157583411,1.22505524,2023.9,2023.5,0.001]
[1772157584227,1.22505524,2023.9,2023.3,0.001]
[1772157584530,0.56360425,2023.8,2023.3,0.001]
[1772157584939,1.23536097,2023.7,2023.3,0.001]
[1772157585235,1.79896522,2023.7,2023.3,0.001]
[1772157585421,0.66145099,2023.5,2023.0,0.62925125]
[1772157585622,0.66145099,2023.5,2022.8,2.70888634]
[1772157585623,0.66145099,2023.5,2022.8,2.10225125]
[1772157585822,0.66145099,2023.5,2022.8,0.63025125]
[1772157587148,1.23554413,2023.4,2022.8,0.63025125]
[1772157588236,0.56260425,2023.3,2022.8,0.63025125]
[1772157589035,0.56260425,2023.2,2022.8,0.63025125]
[1772157589236,1.23566627,2023.2,2022.8,0.63025125]
[1772157589417,4.94217653,2023.5,2022.9,0.4503595]
[1772157589418,1.23548307,2023.5,2022.9,0.4503595]
[1772157590443,0.66145099,2023.4,2022.8,0.001]
[1772157591344,1.89705618,2023.3,2022.8,0.001]
[1772157591845,0.66145099,2023.2,2022.8,0.001]
[1772157593651,1.23566627,2023.2,2023.1,0.001]
[1772157594026,0.002,2023.3,2023.1,0.001]
[1772157594748,1.23760647,2023.3,2023.1,0.001]
[1772157594948,0.002,2023.3,2023.1,0.001]
[1772157595324,0.002,2023.5,2023.1,0.46666117]
[1772157595745,0.002,2023.5,2023.2,0.46366117]
[1772157597653,0.002,2023.5,2023.4,0.46852098]
[1772157597825,0.002,2023.8,2023.4,0.46852098]
[1772157599323,0.002,2023.8,2023.5,0.47327086]
[1772157599836,0.002,2023.8,2023.6,0.47327086]
[1772157600821,0.004,2023.8,2023.6,0.47327086]
[1772157601027,0.002,2023.7,2023.4,1.472]
[1772157601459,0.002,2023.6,2023.4,1.472]
[1772157601660,0.002,2023.6,2023.3,0.47560378]
[1772157601661,0.66145099,2023.7,2023.1,0.001]
[1772157601959,1.89687301,2023.6,2023.1,0.001]
[1772157603559,0.002,2023.8,2023.2,0.48246148]
[1772157603745,0.002,2023.8,2023.3,8.547113]
[1772157603944,0.002,2023.8,2023.4,1.71800561]
[1772157604143,0.002,2023.8,2023.4,1.23554413]
[1772157604349,0.002,2023.8,2023.3,7.956651]
[1772157604557,0.002,2023.8,2023.3,6.351421]
[1772157604861,0.002,2023.8,2023.3,3.873692]
[1772157605635,0.002,2023.8,2023.3,1.474]
[1772157605831,0.002,2023.8,2023.4,2.44243]
[1772157606133,0.002,2023.8,2023.1,0.001]
[1772157606134,0.66345099,2023.8,2023.1,0.001]
[1772157606451,0.66345099,2023.8,2023.2,0.48906018]
[1772157606655,0.002,2023.8,2023.3,0.48906018]
[1772157607849,0.002,2023.8,2023.5,0.001]
[1772157608058,0.002,2023.6,2023.5,0.001]
[1772157608443,0.002,2023.8,2023.5,0.49433531]
[1772157608871,0.002,2023.8,2023.6,2.981751]
[1772157609070,0.002,2023.8,2023.7,0.49133531]
[1772157609442,0.002,2024.1,2023.7,0.49133531]
[1772157610563,0.002,2024.1,2023.8,1.23529993]
[1772157610878,0.002,2024.1,2023.7,1.72665252]
[1772157611175,0.67563335,2024.1,2023.5,0.001]
[1772157613271,0.67363335,2023.9,2023.5,0.001]
[1772157615382,0.67363335,2023.7,2023.3,0.001]
[1772157617263,0.67363335,2023.5,2023.3,0.001]
[1772157617663,1.726,2023.4,2023.1,0.001]
[1772157617882,0.67363335,2023.3,2023.1,0.001]
[1772157618180,0.67363335,2023.3,2022.9,0.001]
[1772157619082,0.67363335,2023.3,2022.6,1.473]
[1772157619083,0.67363335,2022.8,2022.6,0.001]
[1772157619267,1.23603282,2022.6,2022.3,0.001]
[1772157619770,0.67363335,2022.5,2022.3,0.001]
[1772157620159,0.67363335,2022.5,2021.7,1.75074995]
[1772157620799,0.67363335,2022.7,2021.9,14.89023242]
[1772157620954,1.90963803,2022.7,2021.9,0.51791442]
[1772157621294,1.90963803,2022.7,2022.0,1.75612821]
[1772157622191,0.67363335,2022.7,2022.0,1.75612821]
[1772157622498,0.67363335,2022.7,2022.5,0.001]
[1772157623198,1.726,2022.8,2022.5,0.001]
[1772157625994,1.90942217,2023.0,2022.5,0.001]
[1772157627270,0.67363335,2023.0,2022.5,0.001]
[1772157628288,0.67363335,2023.0,2022.5,1.23709394]
[1772157629069,0.67363335,2022.9,2022.5,0.001]
[1772157629461,1.23579361,2023.0,2022.5,0.001]
[1772157630791,0.67363335,2023.0,2022.5,0.001]
[1772157633700,1.728,2023.4,2022.6,0.53998078]
[1772157633884,0.67363335,2023.4,2022.6,0.53998078]
[1772157635982,0.002,2023.2,2022.7,1.23597172]
[1772157636193,0.002,2023.2,2022.8,0.54461297]
[1772157637580,1.23754558,2023.4,2022.8,0.54412228]
[1772157637789,1.91117893,2023.4,2022.8,0.54412228]
[1772157638204,0.002,2023.4,2023.0,0.54708492]
[1772157641388,0.002,2023.4,2023.2,0.55277994]
[1772157641912,0.002,2023.4,2023.1,1.23572734]
[1772157641913,0.002,2023.6,2023.4,0.55277994]
[1772157642227,0.74364754,2024.1,2023.5,0.55277994]
[1772157642711,0.002,2024.6,2023.9,0.552168]
[1772157642909,1.97848201,2024.6,2023.9,0.552168]
[1772157643075,0.74364754,2024.6,2023.9,0.552168]
[1772157643512,0.74364754,2024.6,2024.0,1.23517786]
[1772157643697,0.002,2024.6,2024.0,1.78871647]
[1772157645501,0.74164754,2024.5,2023.8,5.49694923]
[1772157645707,1.97846483,2024.6,2024.0,0.55623777]
[1772157646306,0.74364754,2024.6,2024.0,0.55623777]
[1772157646811,1.97846537,2024.6,2024.0,0.55623777]
[1772157647511,0.74164754,2024.5,2023.9,0.55887373]
[1772157647701,0.002,2024.6,2024.1,0.55887373]
[1772157648086,0.002,2024.2,2024.1,7.32896973]
[1772157648394,0.74164754,2025.0,2024.3,4.37808627]
[1772157648714,0.74164754,2025.0,2024.3,0.55816727]
[1772157649105,0.74164754,2025.0,2024.2,7.470023]
[1772157649488,0.74164754,2025.0,2024.2,2.088621]
[1772157649687,0.74164754,2024.8,2024.2,1.23505582]
[1772157650617,0.74164754,2024.8,2024.3,0.56072288]
[1772157650916,0.74164754,2025.1,2024.3,0.56072288]
[1772157651710,3.42076869,2025.6,2024.5,0.56197746]
[1772157651912,0.74164754,2025.7,2024.7,0.56197746]
[1772157653891,1.23420221,2025.6,2024.8,1.23468984]
[1772157654090,0.74164754,2025.5,2024.8,1.79913064]
[1772157654819,1.23420221,2025.6,2024.8,1.79913064]
[1772157654820,0.74164754,2025.6,2024.8,1.23468984]
[1772157655411,0.74164754,2025.6,2024.8,1.8015313]
[1772157655617,0.74164754,2025.6,2024.7,1.23470375]
[1772157656001,0.74164754,2025.4,2024.7,1.23470375]
[1772157656396,0.74164754,2025.4,2024.7,1.80272827]
[1772157658011,0.74164754,2025.2,2024.6,1.473]
[1772157659431,0.74164754,2025.2,2024.2,3.27747556]
[1772157659895,0.74164754,2025.2,2024.4,0.001]
[1772157660095,0.74164754,2025.0,2024.4,0.001]
[1772157660498,0.74164754,2025.0,2024.2,3.27747556]
[1772157660499,0.74164754,2024.8,2024.2,0.001]
[1772157661229,0.74164754,2024.8,2023.5,2.70543153]
[1772157661230,0.74164754,2024.8,2023.9,0.001]
[1772157662093,0.74164754,2024.5,2023.2,1.23566627]
[1772157663093,0.74164754,2024.5,2023.4,0.57583498]
[1772157663513,0.74164754,2024.5,2023.6,11.291666]
[1772157663694,0.74164754,2024.5,2023.8,7.316889]
[1772157663897,8.35977199,2025.0,2023.6,1.295]
[1772157663898,1.97615447,2025.1,2023.9,0.57692408]
[1772157664122,0.74164754,2024.8,2024.1,1.23511684]
[1772157664321,0.74164754,2024.8,2024.2,2.4341]
[1772157664524,0.74164754,2025.0,2024.3,30.0]
[1772157665698,1.97812591,2025.2,2024.3,0.57905895]
[1772157666304,1.97812591,2025.2,2024.4,1.81504114]
[1772157666305,0.74364754,2025.2,2024.4,1.81504114]
[1772157666724,0.74364754,2025.2,2024.5,8.97835]
[1772157667515,0.002,2025.2,2024.5,9.55949132]
[1772157667723,0.002,2025.2,2024.6,14.015435]
[1772157668026,0.002,2025.2,2024.7,1.474]
[1772157668726,0.002,2025.2,2024.8,1.23468984]
[1772157671703,0.002,2025.2,2024.8,1.82082946]
[1772157673120,0.002,2025.0,2024.7,2.7087098]
[1772157674105,0.002,2025.0,2024.7,1.474]
[1772157677716,0.002,2025.0,2024.7,2.70874365]
[1772157678136,0.002,2025.2,2024.8,0.58979133]
[1772157678334,0.002,2025.2,2024.8,6.36033]
[1772157678637,0.002,2025.2,2024.9,1.23462887]
[1772157679774,6.64593086,2026.0,2024.9,1.23462887]
[1772157679775,1.94067495,2026.3,2025.3,12.06280677]
[1772157679933,0.70389445,2026.2,2025.4,23.983979]
[1772157680130,0.70389445,2026.2,2025.5,1.484]
[1772157680320,0.70389445,2026.1,2025.3,1.485]
[1772157680522,0.70389445,2026.1,2025.0,1.485]
[1772157680717,2.47974399,2025.9,2025.0,1.485]
[1772157680917,0.70389445,2025.8,2025.0,2.71956077]
[1772157681739,0.70389445,2025.8,2025.1,0.59336205]
[1772157682042,0.70389445,2025.8,2025.0,2.71956077]
[1772157682420,0.70389445,2025.8,2025.0,3.31378613]
[1772157683420,0.70389445,2025.8,2025.1,0.59507853]
[1772157684143,1.93797674,2025.8,2025.1,0.59507853]
[1772157684458,0.70389445,2025.8,2025.1,0.59507853]
[1772157684752,0.70389445,2025.8,2025.2,3.343778]
[1772157684953,0.70389445,2025.8,2025.1,0.59507853]
[1772157685124,0.70389445,2025.8,2025.3,1.23438502]
[1772157685525,0.70389445,2026.0,2025.4,1.484]